fUSD/lending_fUSD_20241226
["ID","MTS","AMOUNT","RATE_DAILY","PERIOD"]
[346734798,1735255845988,-500.0,0.00012496,2]
[346734799,1735255845998,-500.0,0.00012496,2]
[346734800,1735255846008,-1984.97,0.00012496,2]
[346734801,1735255846018,-500.0,0.00012496,2]
[346734802,1735255846027,-500.0,0.00012496,2]
[346734803,1735255846036,-500.0,0.00012496,2]
[346734804,1735255846046,-500.0,0.00012496,2]
[346734805,1735255846055,-1091.44,0.00012496,2]
[346734806,1735255846068,-500.0,0.00012496,2]
[346734807,1735255846078,-3011.52,0.00012496,2]
[346734809,1735255846088,-500.0,0.00012496,2]
[346734811,1735255846097,-500.0,0.00012496,2]
[346734813,1735255846107,-500.0,0.00012496,2]
[346734815,1735255846118,-500.52553831,0.00012496,2]
[346734817,1735255846128,-591.9,0.00012496,2]
[346734819,1735255846137,-839.17,0.00012496,2]
[346734821,1735255846147,-1277.54,0.00012496,2]
[346734823,1735255846156,-540.48,0.00012496,2]
[346734825,1735255846166,-500.0,0.00012496,2]
[346734827,1735255846175,-500.0,0.00012496,2]
[346734829,1735255846184,-1902.1,0.00012496,2]
[346734831,1735255846193,-500.0,0.00012496,2]
[346734833,1735255846202,-500.0,0.00012496,2]
[346734835,1735255846211,-10615.16,0.00012496,2]
[346734837,1735255846221,-500.0,0.00012496,2]
[346734839,1735255846231,-500.0,0.00012496,2]
[346734841,1735255846240,-500.0,0.00012496,2]
[346734843,1735255846249,-500.0,0.00012496,2]
[346734845,1735255846258,-500.0,0.00012496,2]
[346734847,1735255846268,-500.0,0.00012496,2]
[346734849,1735255846278,-1943.52,0.00012496,2]
[346734851,1735255846287,-500.0,0.00012496,2]
[346734853,1735255846296,-500.0,0.00012496,2]
[346734855,1735255846305,-712.96,0.00012496,2]
[346734857,1735255846318,-500.0,0.00012496,2]
[346734859,1735255846329,-500.0,0.00012496,2]
[346734861,1735255846339,-500.0,0.00012496,2]
[346734863,1735255846349,-500.0,0.00012496,2]
[346734865,1735255846359,-1149.23,0.00012496,2]
[346734867,1735255846369,-3772.44,0.00012496,2]
[346734869,1735255846378,-500.0,0.00012496,2]
[346734871,1735255846388,-1955.42,0.00012496,2]
[346734873,1735255846397,-500.0,0.00012496,2]
[346734875,1735255846406,-500.0,0.00012496,2]
[346734877,1735255846415,-1227.09,0.00012496,2]
[346734879,1735255846424,-500.0,0.00012496,2]
[346734881,1735255846434,-666.24,0.00012496,2]
[346734883,1735255846443,-500.0,0.00012496,2]
[346734885,1735255846452,-5427.85,0.00012496,2]
[346734887,1735255846462,-500.0,0.00012496,2]
[346734889,1735255846471,-1133.31,0.00012496,2]
[346734891,1735255846480,-500.0,0.00012496,2]
[346734893,1735255846490,-585.26,0.00012496,2]
[346734895,1735255846499,-500.22549866,0.00012496,2]
[346734897,1735255846508,-500.0,0.00012496,2]
[346734899,1735255846517,-663.35,0.00012496,2]
[346734901,1735255846527,-500.0,0.00012496,2]
[346734903,1735255846536,-500.0,0.00012496,2]
[346734905,1735255846545,-500.0,0.00012496,2]
[346734907,1735255846554,-500.0,0.00012496,2]
[346734909,1735255846563,-1671.95,0.00012496,2]
[346734911,1735255846576,-500.0,0.00012496,2]
[346734913,1735255846585,-852.88,0.00012496,2]
[346734915,1735255846595,-500.0,0.00012496,2]
[346734917,1735255846603,-500.0,0.00012496,2]
[346734919,1735255846612,-825.33,0.00012496,2]
[346734921,1735255846622,-500.0,0.00012496,2]
[346734923,1735255846631,-1650.1,0.00012496,2]
[346734925,1735255846640,-500.0,0.00012496,2]
[346734927,1735255846649,-500.0,0.00012496,2]
[346734929,1735255846658,-500.0,0.00012496,2]
[346734931,1735255846667,-150.57994406,0.00012496,2]
[346734933,1735255846677,-500.0,0.00012496,2]
[346734935,1735255846686,-831.06,0.00012496,2]
[346734937,1735255846695,-5000.0,0.00012496,2]
[346734939,1735255846704,-3213.36,0.00012496,2]
[346734941,1735255846713,-854.22,0.00012496,2]
[346734943,1735255846723,-2557.13,0.00012496,2]
[346734945,1735255846732,-500.0,0.00012496,2]
[346734947,1735255846741,-3607.61,0.00012496,2]
[346734949,1735255846750,-1070.62,0.00012496,2]
[346734951,1735255846759,-500.89118535,0.00012496,2]
[346734953,1735255846768,-727.06,0.00012496,2]
[346734955,1735255846777,-736.16,0.00012496,2]
[346734957,1735255846787,-1324.17,0.00012496,2]
[346734959,1735255846797,-633.33,0.00012496,2]
[346734960,1735255846806,-876.67,0.00012496,2]
[346734961,1735255846820,-2958.34,0.00012496,2]
[346734962,1735255846830,-500.0,0.00012496,2]
[346734963,1735255846839,-501.69261408,0.00012496,2]
[346734964,1735255846849,-599.12,0.00012496,2]
[346734965,1735255846858,-500.0,0.00012496,2]
[346734967,1735255846867,-1264.43,0.00012496,2]
[346734968,1735255846876,-1917.48,0.00012497,2]
[346734971,1735255846890,-522.5,0.00012497,2]
[346734972,1735255846901,-726.88,0.00012497,2]
[346734974,1735255846910,-1047.5,0.00012497,2]
[346734976,1735255846919,-500.0,0.00012497,2]
[346734978,1735255846929,-1042.0,0.00012497,2]
[346734980,1735255846938,-1042.0,0.00012497,2]
[346734982,1735255846947,-1042.0,0.00012497,2]
[346734984,1735255846956,-1042.0,0.00012497,2]
[346734986,1735255846968,-1042.0,0.00012497,2]
[346734988,1735255846978,-1042.0,0.00012497,2]
[346734990,1735255846987,-2116.6,0.00012497,2]
[346734992,1735255846996,-2116.6,0.00012497,2]
[346734994,1735255847005,-2116.6,0.00012497,2]
[346734996,1735255847014,-2116.6,0.00012497,2]
[346734998,1735255847024,-2116.6,0.00012497,2]
[346735000,1735255847033,-2116.6,0.00012497,2]
[346735002,1735255847043,-500.0,0.00012497,2]
[346735004,1735255847052,-500.0,0.00012497,2]
[346735006,1735255847061,-500.0,0.00012497,2]
[346735008,1735255847073,-500.0,0.00012497,2]
[346735010,1735255847082,-500.0,0.00012497,2]
[346735012,1735255847092,-163.6219093,0.00012497,2]
[346735014,1735255847102,-2076.93,0.00012497,2]
[346735016,1735255847111,-1986.64,0.00012497,2]
[346735018,1735255847120,-2802.33,0.00012497,2]
[346735020,1735255847129,-2820.27,0.00012497,2]
[346735022,1735255847139,-1835.4,0.00012497,2]
[346735024,1735255847148,-2099.66,0.00012497,2]
[346735026,1735255847157,-2198.31,0.00012497,2]
[346735028,1735255847167,-727.06,0.00012497,2]
[346735030,1735255847175,-727.06,0.00012497,2]
[346735032,1735255847184,-727.06,0.00012497,2]
[346735034,1735255847194,-727.06,0.00012497,2]
[346735050,1735255847335,-618.63,0.00012497,2]
[346735052,1735255847344,-727.06,0.00012497,2]
[346735054,1735255847354,-727.06,0.00012497,2]
[346735056,1735255847363,-3697.92,0.00012497,2]
[346735058,1735255847372,-1336.96,0.00012497,2]
[346735060,1735255847381,-5068.72,0.00012497,2]
[346735062,1735255847391,-501.19064313,0.00012498,2]
[346735064,1735255847400,-500.0,0.00012498,2]
[346735066,1735255847410,-500.49705044,0.00012498,2]
[346735068,1735255847419,-500.0,0.00012498,2]
[346735070,1735255847428,-500.0,0.00012498,2]
[346735072,1735255847437,-500.0,0.00012498,2]
[346735074,1735255847447,-500.0,0.00012498,2]
[346735076,1735255847456,-500.0,0.00012498,2]
[346735078,1735255847465,-500.0,0.00012498,2]
[346735080,1735255847474,-500.0,0.00012498,2]
[346735082,1735255847484,-1041.46,0.00012498,2]
[346735084,1735255847493,-500.0,0.00012498,2]
[346735086,1735255847502,-500.0,0.00012498,2]
[346735088,1735255847511,-598.97,0.00012498,2]
[346735090,1735255847520,-500.0,0.00012498,2]
[346735092,1735255847530,-500.0,0.00012498,2]
[346735094,1735255847539,-519.13957143,0.00012498,2]
[346735096,1735255847548,-991.5,0.00012498,2]
[346735098,1735255847557,-500.0,0.00012498,2]
[346735100,1735255847569,-500.0,0.00012498,2]
[346735102,1735255847578,-500.0,0.00012498,2]
[346735104,1735255847587,-1042.0,0.00012498,2]
[346735106,1735255847597,-500.0,0.00012498,2]
[346735108,1735255847606,-2116.6,0.00012498,2]
[346735110,1735255847616,-500.0,0.00012498,2]
[346735112,1735255847626,-5747.99,0.00012498,2]
[346735114,1735255847636,-3000.0,0.00012498,2]
[346735116,1735255847646,-31060.85,0.00012498,2]
[346735118,1735255847655,-500.0,0.00012498,2]
[346735120,1735255847664,-500.0,0.00012498,2]
[346735122,1735255847672,-3420.62,0.00012498,2]
[346735124,1735255847682,-2008.81,0.00012498,2]
[346735126,1735255847691,-1447.37,0.00012498,2]
[346735128,1735255847700,-727.06,0.00012498,2]
[346735130,1735255847709,-3840.23,0.00012498,2]
[346735132,1735255847718,-13989.17,0.00012498,2]
[346735134,1735255847728,-921.6,0.00012498,2]
[346735136,1735255847737,-514.63756317,0.000125,2]
[346735138,1735255847747,-2263.74474818,0.00012506,2]
[346735140,1735255847756,-796.74792538,0.00012507,2]
[346735142,1735255847765,-2263.74474818,0.00012563,2]
[346735144,1735255847774,-796.74792538,0.00012563,2]
[346735146,1735255847784,-518.0,0.00012566,2]
[346735148,1735255847793,-288.50146009,0.00012579,2]
[346735150,1735255847802,-591.29,0.00012598,2]
[346735152,1735255847811,-2263.74474818,0.00012619,2]
[346735154,1735255847823,-796.74792538,0.00012619,2]
[346735155,1735255847832,-164.30406952,0.00012669,2]
[346735156,1735255847842,-1000.0,0.00012673,2]
[346735157,1735255847851,-2263.74474818,0.00012675,2]
[346735158,1735255847862,-796.74792538,0.00012676,2]
[346735159,1735255847872,-2263.74474818,0.00012731,2]
[346735160,1735255847883,-796.74792538,0.00012732,2]
[346735162,1735255847896,-178.3984536,0.00012739,2]
[346735164,1735255847906,-882.7,0.00012746,2]
[346735166,1735255847915,-288.50146009,0.00012761,2]
[346735168,1735255847924,-1815.78,0.00012767,2]
[346735170,1735255847935,-605.73,0.00012767,2]
[346735172,1735255847944,-2981.98,0.00012767,2]
[346735174,1735255847954,-3522.8,0.00012767,2]
[346735176,1735255847963,-1071.17,0.00012767,2]
[346735178,1735255847973,-9836.43,0.00012767,2]
[346735180,1735255847983,-4461.58,0.00012767,2]
[346735182,1735255847992,-9342.86,0.00012767,2]
[346735184,1735255848001,-3607.61,0.00012767,2]
[346735186,1735255848010,-3214.82,0.00012767,2]
[346735188,1735255848019,-6112.16,0.00012767,2]
[346735190,1735255848029,-6942.77,0.00012767,2]
[346735192,1735255848040,-858.35,0.00012767,2]
[346735194,1735255848050,-839.27,0.00012767,2]
[346735196,1735255848059,-2391.58,0.00012767,2]
[346735198,1735255848070,-500.0,0.00012767,2]
[346735200,1735255848079,-2867.71,0.00012767,2]
[346735202,1735255848089,-2238.21,0.00012767,2]
[346735204,1735255848098,-645.96,0.00012767,2]
[346735206,1735255848108,-2348.66,0.00012767,2]
[346735208,1735255848118,-3227.45,0.00012767,2]
[346735210,1735255848127,-500.0,0.00012767,2]
[346735212,1735255848136,-1657.03,0.00012767,2]
[346735214,1735255848146,-500.0,0.00012767,2]
[346735216,1735255848155,-500.0,0.00012767,2]
[346735218,1735255848165,-500.0,0.00012767,2]
[346735220,1735255848174,-500.0,0.00012767,2]
[346735222,1735255848183,-500.0,0.00012768,2]
[346735224,1735255848192,-500.0,0.00012768,2]
[346735226,1735255848202,-996.71,0.00012768,2]
[346735228,1735255848211,-500.0,0.00012768,2]
[346735230,1735255848220,-500.0,0.00012768,2]
[346735232,1735255848229,-500.0,0.00012768,2]
[346735234,1735255848239,-515.12345622,0.00012768,2]
[346735236,1735255848248,-512.3312952,0.00012768,2]
[346735238,1735255848258,-504.19985319,0.00012768,2]
[346735240,1735255848268,-500.0,0.00012768,2]
[346735242,1735255848277,-513.0962151,0.00012768,2]
[346735244,1735255848287,-500.0,0.00012768,2]
[346735246,1735255848296,-513.08,0.00012768,2]
[346735248,1735255848306,-500.0,0.00012768,2]
[346735250,1735255848316,-500.0,0.00012768,2]
[346735252,1735255848327,-500.0,0.00012768,2]
[346735254,1735255848337,-500.0,0.00012768,2]
[346735255,1735255848347,-1473.99,0.00012768,2]
[346735257,1735255848357,-519.17,0.00012768,2]
[346735258,1735255848367,-500.0,0.00012768,2]
[346735260,1735255848376,-1928.72,0.00012768,2]
[346735261,1735255848385,-500.0,0.00012768,2]
[346735263,1735255848395,-500.0,0.00012768,2]
[346735264,1735255848404,-2161.47,0.00012768,2]
[346735266,1735255848413,-515.75166379,0.00012768,2]
[346735267,1735255848424,-1653.13,0.00012768,2]
[346735269,1735255848434,-500.0,0.00012768,2]
[346735270,1735255848443,-2046.97,0.00012768,2]
[346735272,1735255848453,-500.0,0.00012768,2]
[346735273,1735255848462,-500.0,0.00012768,2]
[346735275,1735255848471,-1180.03,0.00012768,2]
[346735276,1735255848481,-500.0,0.00012768,2]
[346735278,1735255848490,-500.0,0.00012768,2]
[346735279,1735255848499,-506.38926265,0.00012768,2]
[346735281,1735255848508,-1071.9,0.00012768,2]
[346735282,1735255848517,-500.0,0.00012768,2]
[346735284,1735255848526,-500.0,0.00012768,2]
[346735285,1735255848536,-799.52,0.00012768,2]
[346735287,1735255848545,-500.0,0.00012768,2]
[346735288,1735255848554,-500.0,0.00012768,2]
[346735290,1735255848564,-1004.78,0.00012768,2]
[346735292,1735255848575,-500.0,0.00012768,2]
[346735293,1735255848584,-500.0,0.00012768,2]
[346735295,1735255848593,-1691.97,0.00012768,2]
[346735296,1735255848602,-1286.88,0.00012768,2]
[346735298,1735255848611,-855.49,0.00012768,2]
[346735300,1735255848620,-500.0,0.00012768,2]
[346735301,1735255848630,-172.70320418,0.00012768,2]
[346735303,1735255848639,-725.61,0.00012768,2]
[346735305,1735255848648,-1309.64,0.00012768,2]
[346735306,1735255848658,-1893.38,0.00012768,2]
[346735308,1735255848667,-2192.94,0.00012768,2]
[346735310,1735255848676,-513.51,0.00012768,2]
[346735311,1735255848685,-500.0,0.00012768,2]
[346735313,1735255848695,-2051.36,0.00012768,2]
[346735315,1735255848704,-500.0,0.00012768,2]
[346735316,1735255848713,-500.0,0.00012768,2]
[346735318,1735255848722,-500.0,0.00012768,2]
[346735320,1735255848732,-500.0,0.00012768,2]
[346735321,1735255848741,-817.57,0.00012768,2]
[346735323,1735255848751,-509.5,0.00012768,2]
[346735324,1735255848760,-500.0,0.00012768,2]
[346735326,1735255848769,-500.0,0.00012768,2]
[346735328,1735255848779,-500.0,0.00012768,2]
[346735329,1735255848788,-507.3353362,0.00012768,2]
[346735331,1735255848798,-338.0499865,0.00012768,2]
[346735383,1735255849485,-161.9500135,0.00012768,2]
[346735385,1735255849495,-107.29233998,0.00012768,2]
[346735387,1735255849507,-392.70766002,0.00012768,2]
[346735389,1735255849515,-118.93284775,0.00012768,2]
[346735391,1735255849527,-393.15,0.00012768,2]
[346735394,1735255849538,-138.26715225,0.00012768,2]
[346735396,1735255849548,-500.0,0.00012768,2]
[346735398,1735255849557,-500.0,0.00012768,2]
[346735400,1735255849566,-646.31284776,0.00012768,2]
[346735403,1735255849592,-331.32715224,0.00012768,2]
[346735405,1735255849601,-507.81855804,0.00012768,2]
[346735407,1735255849611,-1025.2,0.00012768,2]
[346735409,1735255849620,-500.0,0.00012768,2]
[346735412,1735255849639,-1274.05,0.00012768,2]
[346735415,1735255849654,-808.00430168,0.00012768,2]
[346735417,1735255849677,-1202.80569832,0.00012768,2]
[346735420,1735255849695,-1407.5,0.00012768,2]
[346735422,1735255849709,-1016.04,0.00012768,2]
[346735425,1735255849729,-500.0,0.00012768,2]
[346735428,1735255849746,-812.35,0.00012768,2]
[346735431,1735255849765,-2100.78,0.00012768,2]
[346735433,1735255849784,-2082.39,0.00012768,2]
[346735436,1735255849804,-785.02,0.00012768,2]
[346735439,1735255849821,-500.0,0.00012768,2]
[346735441,1735255849834,-500.0,0.00012768,2]
[346735444,1735255849852,-722.62,0.00012768,2]
[346735447,1735255849866,-2145.64,0.00012768,2]
[346735449,1735255849883,-500.0,0.00012768,2]
[346735452,1735255849899,-1004.44,0.00012768,2]
[346735455,1735255849918,-579.3,0.00012768,2]
[346735457,1735255849933,-500.0,0.00012768,2]
[346735460,1735255849948,-1119.43,0.00012768,2]
[346735462,1735255849963,-500.0,0.00012768,2]
[346735465,1735255849978,-1469.68430168,0.00012768,2]
[346735481,1735255852285,-466.62588,0.00012494,2]
[346735482,1735255852296,-38.09485651,0.00012494,2]
[346735483,1735255852307,-473.01502091,0.00012496,2]
[346735484,1735255852318,-620.13497909,0.00012496,2]
[346735485,1735255852330,-3460.18886566,0.00012496,2]
[346735486,1735255852348,-4213.29113434,0.00012496,2]
[346735487,1735255852357,-418.62569832,0.00012768,2]
[346735488,1735255852366,-500.0,0.00012768,2]
[346735489,1735255852376,-2584.97,0.00012768,2]
[346735490,1735255852384,-615.05,0.00012768,2]
[346735491,1735255852394,-12407.69,0.00012768,2]
[346735492,1735255852403,-931.2,0.00012768,2]
[346735493,1735255852412,-500.0,0.00012768,2]
[346735494,1735255852421,-500.0,0.00012768,2]
[346735495,1735255852431,-368.39338207,0.00012768,2]
[346735496,1735255852443,-131.60661793,0.00012768,2]
[346735497,1735255852452,-868.39338207,0.00012768,2]
[346735498,1735255852463,-3303.75148366,0.00012768,2]
[346735499,1735255852474,-694.98749729,0.00012768,2]
[346735500,1735255852491,-55.23763698,0.00012768,2]
[346735501,1735255852500,-500.0,0.00012768,2]
[346735502,1735255852510,-500.0,0.00012768,2]
[346735503,1735255852519,-1017.31,0.00012768,2]
[346735504,1735255852528,-2998.52,0.00012768,2]
[346735505,1735255852537,-500.0,0.00012768,2]
[346735506,1735255852547,-2889.81,0.00012768,2]
[346735507,1735255852555,-1542.48,0.00012768,2]
[346735508,1735255852565,-1169.39,0.00012768,2]
[346735509,1735255852576,-500.0,0.00012768,2]
[346735510,1735255852585,-549.88,0.00012768,2]
[346735511,1735255852595,-1527.85,0.00012768,2]
[346735512,1735255852606,-5504.37,0.00012768,2]
[346735513,1735255852615,-916.93,0.00012768,2]
[346735514,1735255852625,-651.86,0.00012768,2]
[346735515,1735255852634,-1076.9,0.00012768,2]
[346735516,1735255852643,-500.0,0.00012768,2]
[346735517,1735255852653,-570.2,0.00012768,2]
[346735518,1735255852662,-1186.41,0.00012768,2]
[346735519,1735255852671,-1927.63,0.00012768,2]
[346735520,1735255852680,-513.05,0.00012768,2]
[346735521,1735255852689,-2109.66,0.00012768,2]
[346735522,1735255852699,-500.0,0.00012768,2]
[346735523,1735255852708,-5866.98,0.00012768,2]
[346735524,1735255852717,-1645.99410035,0.00012768,2]
[346735525,1735255852728,-4229.83589965,0.00012768,2]
[346735526,1735255852737,-500.0,0.00012768,2]
[346735527,1735255852746,-1157.25,0.00012768,2]
[346735528,1735255852756,-2644.36,0.00012768,2]
[346735529,1735255852765,-3811.85,0.00012768,2]
[346735530,1735255852775,-5398.65,0.00012768,2]
[346735531,1735255852784,-1682.07,0.00012768,2]
[346735532,1735255852794,-872.94,0.00012768,2]
[346735533,1735255852803,-2052.08,0.00012768,2]
[346735534,1735255852812,-13522.12,0.00012768,2]
[346735535,1735255852822,-1378.47,0.00012768,2]
[346735536,1735255852831,-512.62,0.00012768,2]
[346735537,1735255852841,-2064.84,0.00012768,2]
[346735538,1735255852850,-500.0,0.00012768,2]
[346735539,1735255852859,-3245.54,0.00012768,2]
[346735540,1735255852870,-1740.36,0.00012768,2]
[346735541,1735255852880,-2612.37,0.00012768,2]
[346735542,1735255852890,-2592.77,0.00012768,2]
[346735543,1735255852903,-500.0,0.00012768,2]
[346735544,1735255852913,-2015.09,0.00012768,2]
[346735545,1735255852922,-1098.85,0.00012768,2]
[346735546,1735255852932,-695.29,0.00012768,2]
[346735547,1735255852942,-3307.64,0.00012768,2]
[346735548,1735255852951,-1089.7,0.00012768,2]
[346735549,1735255852961,-1291.87,0.00012768,2]
[346735550,1735255852972,-10236.46,0.00012768,2]
[346735551,1735255852981,-6715.43,0.00012768,2]
[346735552,1735255852991,-1824.94,0.00012768,2]
[346735553,1735255853000,-500.0,0.00012768,2]
[346735554,1735255853010,-3866.1,0.00012768,2]
[346735555,1735255853019,-18623.42,0.00012768,2]
[346735556,1735255853028,-19435.66,0.00012768,2]
[346735557,1735255853038,-897.15224,0.00012768,2]
[346735558,1735255853047,-1608.34,0.00012768,2]
[346735559,1735255853058,-3607.61,0.00012768,2]
[346735560,1735255853068,-1409.54,0.00012768,2]
[346735561,1735255853078,-449.419804,0.00012768,2]
[346735562,1735255853088,-500.0,0.00012768,2]
[346735563,1735255853097,-10251.79,0.00012768,2]
[346735564,1735255853107,-500.0,0.00012768,2]
[346735565,1735255853116,-1662.88,0.00012768,2]
[346735566,1735255853126,-1233.54,0.00012768,2]
[346735567,1735255853135,-1836.94,0.00012768,2]
[346735568,1735255853144,-503.97653854,0.00012768,2]
[346735569,1735255853153,-3104.95,0.00012768,2]
[346735570,1735255853163,-500.0,0.00012768,2]
[346735571,1735255853172,-2409.95,0.00012768,2]
[346735572,1735255853181,-500.0,0.00012768,2]
[346735573,1735255853190,-323.57527923,0.00012769,2]
[346735574,1735255853199,-131214.62467311,0.00012769,2]
[346735575,1735255853210,-31199.9999992,0.00012769,2]
[346735576,1735255853222,-130144.04060024,0.00012769,2]
[346735577,1735255853233,-9445.1,0.00012769,2]
[346735578,1735255853244,-607.275015,0.00012769,2]
[346735579,1735255853255,-4941.09052972,0.00012769,2]
[346735580,1735255853265,-108115.2388814,0.00012769,2]
[346735581,1735255853281,-23000.0,0.00012769,2]
[346735583,1735255854031,-2170.14205106,0.00012769,2]
[346735584,1735255854043,-375.2583614,0.00012769,2]
[346735585,1735255854055,-342.49280524,0.00012769,2]
[346735586,1735255854067,-334.44769409,0.00012769,2]
[346735587,1735255854090,-27983.0677319,0.00012769,2]
[346735588,1735255854101,-9085.46180306,0.00012769,2]
[346735589,1735255854114,-23130.0,0.00012769,2]
[346735590,1735255854127,-4406.33139998,0.00012769,2]
[346735591,1735255854139,-529.1999988,0.00012769,2]
[346735592,1735255854150,-137896.19052902,0.00012769,2]
[346735593,1735255854179,-426.17811177,0.00012769,2]
[346735594,1735255854195,-2448.40278486,0.00012769,2]
[346735595,1735255854206,-349.69019323,0.00012769,2]
[346735596,1735255854291,-0.03108971,0.00012769,2]
[346735597,1735255854302,-62023.59609106,0.00012769,2]
[346735599,1735255854599,-192.73191021,0.00012493,2]
[346735600,1735255854608,-417.53091138,0.00012769,2]
[346735601,1735255854619,-5056.06559932,0.00012769,2]
[346735602,1735255854630,-3165.53123548,0.00012769,2]
[346735603,1735255854641,-84009.89723876,0.00012769,2]
[346735604,1735255854652,-1336.59500157,0.00012769,2]
[346735605,1735255854662,-3042.216401,0.00012769,2]
[346735607,1735255854851,-525.492,0.00012769,2]
[346735608,1735255854862,-1273.44445895,0.00012769,2]
[346735609,1735255854873,-325.96729251,0.00012769,2]
[346735610,1735255854885,-621.1079985,0.00012769,2]
[346735611,1735255854899,-604.0,0.00012769,2]
[346735612,1735255854909,-326.56670096,0.00012769,2]
[346735613,1735255854920,-495.2572,0.00012769,2]
[346735614,1735255854931,-1852.800005,0.00012769,2]
[346735618,1735255855618,-274.60047035,0.00012494,2]
[346735619,1735255855645,-727.04806406,0.00012494,2]
[346735620,1735255855657,-710.70146559,0.00012494,2]
[346735621,1735255855666,-1612.45,0.00012495,2]
[346735622,1735255855676,-1712.35,0.00012768,2]
[346735623,1735255855686,-5996.78112331,0.00012769,2]
[346735624,1735255855697,-1875.10000005,0.00012769,2]
[346735625,1735255855708,-1979.24,0.00012769,2]
[346735627,1735255855719,-512.5735568,0.00012769,2]
[346735628,1735255855731,-22952.8390586,0.00012769,2]
[346735629,1735255855742,-267.61634036,0.00012769,2]
[346735630,1735255855754,-29484.7682964,0.00012769,2]
[346735631,1735255855766,-37543.6328268,0.00012769,2]
[346735632,1735255855777,-3367.09382291,0.00012769,2]
[346735633,1735255855788,-5106.55160518,0.00012769,2]
[346735634,1735255855800,-432.82035298,0.00012769,2]
[346735635,1735255855813,-7163.59288313,0.00012769,2]
[346735636,1735255855825,-1680.0,0.00012769,2]
[346735637,1735255855843,-482.5,0.00012769,2]
[346736826,1735257031950,-893.56,9.652e-05,2]
[346736827,1735257031960,-199.7,0.00010137,2]
[346736828,1735257031971,-500.0,0.00010904,2]
[346736829,1735257031980,-300.0,0.00010999,2]
[346736830,1735257031989,-3085.59446446,0.00011,2]
[346736831,1735257032001,-3000.0,0.00011,2]
[346736832,1735257032021,-1440.13066984,0.00011,2]
[346736833,1735257032032,-3294.95397143,0.00011,2]
[346736834,1735257032306,-1860.88778191,0.00011,2]
[346736835,1735257032318,-4973.263022,0.00011,2]
[346736837,1735257032331,-31083.835,0.00011,2]
[346736838,1735257032342,-266.39410763,0.00011,2]
[346736925,1735257037838,-550.473753,0.00011,2]
[346736926,1735257037850,-444.46722973,0.00011,2]
[346736927,1735257037859,-209.0,0.00011014,2]
[346736928,1735257037869,-150.0,0.00011041,2]
[346736929,1735257037879,-1000.0,0.00011103,2]
[346736930,1735257037888,-250.0,0.00011131,2]
[346736931,1735257037897,-364.67,0.00011148,2]
[346736932,1735257037907,-250.0,0.00011243,2]
[346736933,1735257037916,-727.12,0.00011273,2]
[346736934,1735257037925,-1182.67,0.00011313,2]
[346736935,1735257037934,-150.0,0.00011342,2]
[346736936,1735257037943,-500.0,0.00011372,2]
[346736937,1735257037953,-233.64127874,0.0001149,2]
[346736938,1735257037962,-150.0,0.0001149,2]
[346736939,1735257037971,-150.0,0.0001149,2]
[346736940,1735257037980,-10084.39881553,0.00011509,2]
[346736941,1735257037992,-4994.44688747,0.00011509,2]
[346736942,1735257038003,-119.504297,0.00011509,2]
[346736944,1735257038012,-317.71696649,0.00011601,2]
[346736945,1735257038023,-673.36001,0.00011601,2]
[346736946,1735257038038,-40.40302351,0.00011601,2]
[346736947,1735257038048,-261.50753475,0.00011628,2]